﻿Department,Entity, Transaction Date, Expense Type, Expense Area, Supplier Name,Transaction number, Amount, Invoice Description
FCDO,CSC,29/10/2021,Postage & Courier,Programme Costs,DHL,NOM001088,1176.14,
FCDO,CSC,01/10/2021,Scholar Allowances,Award Costs,Linacre College Oxford,PIN054835,200,
FCDO,CSC,01/10/2021,Scholar Allowances,Award Costs,Linacre College Oxford,PIN054835,225,
FCDO,CSC,01/10/2021,Scholar Travel,Award Costs,Linacre College Oxford,PIN054835,23,
FCDO,CSC,01/10/2021,Scholar Travel,Award Costs,Linacre College Oxford,PIN054835,373.39,
FCDO,CSC,01/10/2021,Scholar Allowances,Award Costs,Scholar,PIN054837,540,
FCDO,CSC,01/10/2021,Scholar Allowances,Award Costs,The University of Leeds,PIN054838,1575,
FCDO,CSC,01/10/2021,Award Support Costs,Award Costs,University of Strathclyde,PIN054841,5000,
FCDO,CSC,01/10/2021,Award Support Costs,Award Costs,Liverpool School of Tropical Medicine,PIN054842,5000,
FCDO,CSC,01/10/2021,Tuition Fee,Award Costs,Liverpool School of Tropical Medicine,PIN054842,7583.35,
FCDO,CSC,01/10/2021,Award Support Costs,Award Costs,University of Liverpool,PIN054843,4200,
FCDO,CSC,01/10/2021,Tuition Fee,Award Costs,University of Liverpool,PIN054843,18000,
FCDO,CSC,05/10/2021,Scholar Stipend,Award Costs,Scholar,PIN054859,1699.5,
FCDO,CSC,05/10/2021,Scholar Stipend,Award Costs,Scholar,PIN054861,575.18,
FCDO,CSC,05/10/2021,Scholar Allowances,Award Costs,Scholar,PIN054863,1452,
FCDO,CSC,05/10/2021,Scholar Allowances,Award Costs,Scholar,PIN054863,732,
FCDO,CSC,05/10/2021,Scholar Stipend,Award Costs,Scholar,PIN054863,3399,
FCDO,CSC,05/10/2021,Scholar Stipend,Award Costs,Scholar,PIN054864,1116,
FCDO,CSC,05/10/2021,Scholar Allowances,Award Costs,Scholar,PIN054865,433,
FCDO,CSC,05/10/2021,Scholar Stipend,Award Costs,Scholar,PIN054865,321.87,
FCDO,CSC,05/10/2021,Scholar Allowances,Award Costs,Scholar,PIN054866,433,
FCDO,CSC,05/10/2021,Scholar Stipend,Award Costs,Scholar,PIN054866,196.49,
FCDO,CSC,08/10/2021,Scholar Engagement,Programme Costs,Chris Pritchard,PIN054869,150,
FCDO,CSC,08/10/2021,Scholar Engagement,Programme Costs,Chris Pritchard,PIN054869,875,
FCDO,CSC,08/10/2021,Interview Costs,Programme Costs,Way With Words Group,PIN054870,654.36,
FCDO,CSC,08/10/2021,Administration Fee,Admin Costs,Association of Commonwealth Univs,PIN054871,7800,
FCDO,CSC,08/10/2021,Administration Fee,Programme Costs,Association of Commonwealth Univs,PIN054871,44400,
FCDO,CSC,08/10/2021,Administration Fee,Programme Costs,Association of Commonwealth Univs,PIN054871,21000,
FCDO,CSC,08/10/2021,Administration Fee,Programme Costs,Association of Commonwealth Univs,PIN054871,12600,
FCDO,CSC,08/10/2021,Administration Fee,Programme Costs,Association of Commonwealth Univs,PIN054871,86700,
FCDO,CSC,08/10/2021,Administration Fee,Programme Costs,Association of Commonwealth Univs,PIN054871,86400,
FCDO,CSC,08/10/2021,Administration Fee,Programme Costs,Association of Commonwealth Univs,PIN054871,54300,
FCDO,CSC,08/10/2021,ACU Programme Delivery Costs,Admin Costs,Association of Commonwealth Univs,PIN054872,9900,
FCDO,CSC,08/10/2021,Administration Fee,Admin Costs,Association of Commonwealth Univs,PIN054872,3300,
FCDO,CSC,08/10/2021,Admin VAT,Admin Costs,Association of Commonwealth Univs,PIN054872,9100,
FCDO,CSC,08/10/2021,Administration Fee,Admin Costs,Association of Commonwealth Univs,PIN054872,45500,
FCDO,CSC,08/10/2021,Programme VAT,Programme Costs,Association of Commonwealth Univs,PIN054872,54750,
FCDO,CSC,08/10/2021,Administration Fee,Programme Costs,Association of Commonwealth Univs,PIN054872,273750,
FCDO,CSC,07/10/2021,Scholar Stipend,Award Costs,Scholar,PIN054875,3399,
FCDO,CSC,07/10/2021,Scholar Allowances,Award Costs,Scholar,PIN054876,732,
FCDO,CSC,07/10/2021,Scholar Stipend,Award Costs,Scholar,PIN054876,3399,
FCDO,CSC,07/10/2021,Scholar Stipend,Award Costs,Scholar,PIN054877,632.8,
FCDO,CSC,07/10/2021,Scholar Stipend,Award Costs,Scholar,PIN054878,2266,
FCDO,CSC,07/10/2021,Scholar Stipend,Award Costs,Scholar,PIN054881,843.3,
FCDO,CSC,08/10/2021,Scholar Allowances,Award Costs,Scholar,PIN054882,-1440,
FCDO,CSC,08/10/2021,Scholar Stipend,Award Costs,Scholar,PIN054882,6401.07,
FCDO,CSC,08/10/2021,Scholar Allowances,Award Costs,Scholar,PIN054884,244.45,
FCDO,CSC,08/10/2021,Scholar Stipend,Award Costs,Scholar,PIN054884,4170,
FCDO,CSC,11/10/2021,Scholar Allowances,Award Costs,Scholar,PIN054888,439,
FCDO,CSC,11/10/2021,Scholar Stipend,Award Costs,Scholar,PIN054888,3802.32,
FCDO,CSC,15/10/2021,Scholar Allowances,Award Costs,Scholar,PIN054893,600,
FCDO,CSC,15/10/2021,Scholar Allowances,Award Costs,Scholar,PIN054894,595,
FCDO,CSC,15/10/2021,Tuition Fee,Award Costs,City University,PIN054895,10500,
FCDO,CSC,15/10/2021,Award Support Costs,Award Costs,University of Oxford,PIN054897,5000,
FCDO,CSC,15/10/2021,Immigration Health Surcharge,Award Costs,Scholar,PIN054898,470,
FCDO,CSC,15/10/2021,Visa Costs,Award Costs,Scholar,PIN054898,494.2,
FCDO,CSC,15/10/2021,Scholar Travel,Award Costs,University of Oxford,PIN054899,54.8,
FCDO,CSC,15/10/2021,Scholar Travel,Award Costs,University of Oxford,PIN054899,438.03,
FCDO,CSC,15/10/2021,Scholar Allowances,Award Costs,University of Oxford,PIN054899,200,
FCDO,CSC,15/10/2021,Scholar Allowances,Award Costs,University of Oxford,PIN054899,200,
FCDO,CSC,15/10/2021,Scholar Allowances,Award Costs,University of Oxford,PIN054899,225,
FCDO,CSC,15/10/2021,Visa Costs,Award Costs,University of Oxford,PIN054899,134,
FCDO,CSC,15/10/2021,Scholar Travel,Award Costs,University of Oxford,PIN054899,770.34,
FCDO,CSC,15/10/2021,Award Support Costs,Award Costs,University of Aberdeen,PIN054900,5000,
FCDO,CSC,15/10/2021,Tuition Fee,Award Costs,University of Southampton,PIN054902,18000,
FCDO,CSC,15/10/2021,Tuition Fee,Award Costs,University of Portsmouth,PIN054903,14080,
FCDO,CSC,15/10/2021,Tuition Fee,Programme Costs,University of Strathclyde,PIN054904,3900,
FCDO,CSC,15/10/2021,Tuition Fee,Programme Costs,University of Strathclyde,PIN054905,3900,
FCDO,CSC,15/10/2021,Tuition Fee,Programme Costs,University of Strathclyde,PIN054906,3900,
FCDO,CSC,15/10/2021,Tuition Fee,Programme Costs,University of Strathclyde,PIN054907,3900,
FCDO,CSC,15/10/2021,Tuition Fee,Programme Costs,University of Strathclyde,PIN054908,3900,
FCDO,CSC,15/10/2021,Tuition Fee,Award Costs,University of Bristol,PIN054909,17360,
FCDO,CSC,15/10/2021,Tuition Fee,Award Costs,University of Bristol,PIN054910,22500,
FCDO,CSC,15/10/2021,Tuition Fee,Award Costs,Liverpool School of Tropical Medicine,PIN054911,32200,
FCDO,CSC,15/10/2021,Tuition Fee,Award Costs,Liverpool School of Tropical Medicine,PIN054911,42500,
FCDO,CSC,15/10/2021,Tuition Fee,Award Costs,Liverpool School of Tropical Medicine,PIN054911,219300,
FCDO,CSC,15/10/2021,Alumni Engagement,Programme Costs,TFW Printers,PIN054913,504,
FCDO,CSC,15/10/2021,Alumni Engagement,Programme Costs,TFW Printers,PIN054914,1560,
FCDO,CSC,15/10/2021,Alumni Engagement,Programme Costs,The British Council,PIN054917,1424.29,
FCDO,CSC,15/10/2021,Programme VAT,Programme Costs,The British Council,PIN054917,9845.25,
FCDO,CSC,15/10/2021,Alumni Engagement,Programme Costs,The British Council,PIN054917,49226.25,
FCDO,CSC,15/10/2021,Admin VAT,Admin Costs,The British Council,PIN054917,3203.35,
FCDO,CSC,15/10/2021,Administration Fee,Admin Costs,The British Council,PIN054917,16016.75,
FCDO,CSC,06/10/2021,Scholar Allowances,Award Costs,Scholar,PIN054919,439,
FCDO,CSC,06/10/2021,Scholar Stipend,Award Costs,Scholar,PIN054919,3435.67,
FCDO,CSC,06/10/2021,Scholar Allowances,Award Costs,Scholar,PIN054919,439,
FCDO,CSC,06/10/2021,Scholar Stipend,Award Costs,Scholar,PIN054919,3618.99,
FCDO,CSC,06/10/2021,Scholar Allowances,Award Costs,Scholar,PIN054919,439,
FCDO,CSC,06/10/2021,Scholar Stipend,Award Costs,Scholar,PIN054919,3399,
FCDO,CSC,06/10/2021,Scholar Allowances,Award Costs,Scholar,PIN054919,439,
FCDO,CSC,06/10/2021,Scholar Stipend,Award Costs,Scholar,PIN054919,3472.33,
FCDO,CSC,06/10/2021,Bank Charges,Programme Costs,MasterCard Prepaid Management Services Ltd,PIN054919,156.82,
FCDO,CSC,08/10/2021,Scholar Allowances,Award Costs,Scholar,PIN054920,439,
FCDO,CSC,08/10/2021,Scholar Stipend,Award Costs,Scholar,PIN054920,3830.35,
FCDO,CSC,08/10/2021,Scholar Allowances,Award Costs,Scholar,PIN054920,439,
FCDO,CSC,08/10/2021,Scholar Stipend,Award Costs,Scholar,PIN054920,3308.27,
FCDO,CSC,08/10/2021,Scholar Allowances,Award Costs,Scholar,PIN054920,439,
FCDO,CSC,08/10/2021,Scholar Stipend,Award Costs,Scholar,PIN054920,4170,
FCDO,CSC,08/10/2021,Bank Charges,Programme Costs,MasterCard Prepaid Management Services Ltd,PIN054920,126.25,
FCDO,CSC,13/10/2021,Scholar Allowances,Award Costs,Scholar,PIN054922,439,
FCDO,CSC,13/10/2021,Scholar Stipend,Award Costs,Scholar,PIN054922,3122.15,
FCDO,CSC,13/10/2021,Scholar Allowances,Award Costs,Scholar,PIN054922,439,
FCDO,CSC,13/10/2021,Scholar Stipend,Award Costs,Scholar,PIN054922,3122.15,
FCDO,CSC,13/10/2021,Scholar Allowances,Award Costs,Scholar,PIN054922,439,
FCDO,CSC,13/10/2021,Scholar Stipend,Award Costs,Scholar,PIN054922,3233.82,
FCDO,CSC,13/10/2021,Scholar Allowances,Award Costs,Scholar,PIN054922,439,
FCDO,CSC,13/10/2021,Scholar Stipend,Award Costs,Scholar,PIN054922,3382.71,
FCDO,CSC,13/10/2021,Scholar Allowances,Award Costs,Scholar,PIN054922,439,
FCDO,CSC,13/10/2021,Scholar Stipend,Award Costs,Scholar,PIN054922,3084.92,
FCDO,CSC,13/10/2021,Scholar Allowances,Award Costs,Scholar,PIN054922,439,
FCDO,CSC,13/10/2021,Scholar Stipend,Award Costs,Scholar,PIN054922,3399,
FCDO,CSC,13/10/2021,Scholar Allowances,Award Costs,Scholar,PIN054922,170,
FCDO,CSC,13/10/2021,Bank Charges,Programme Costs,MasterCard Prepaid Management Services Ltd,PIN054922,221.49,
FCDO,CSC,07/10/2021,Scholar Allowances,Award Costs,Scholar,PIN054924,439,
FCDO,CSC,07/10/2021,Scholar Stipend,Award Costs,Scholar,PIN054924,3308.27,
FCDO,CSC,07/10/2021,Scholar Allowances,Award Costs,Scholar,PIN054924,439,
FCDO,CSC,07/10/2021,Scholar Stipend,Award Costs,Scholar,PIN054924,3967.35,
FCDO,CSC,07/10/2021,Scholar Allowances,Award Costs,Scholar,PIN054924,439,
FCDO,CSC,07/10/2021,Scholar Stipend,Award Costs,Scholar,PIN054924,4104.35,
FCDO,CSC,07/10/2021,Scholar Allowances,Award Costs,Scholar,PIN054924,439,
FCDO,CSC,07/10/2021,Scholar Stipend,Award Costs,Scholar,PIN054924,3308.27,
FCDO,CSC,07/10/2021,Scholar Allowances,Award Costs,Scholar,PIN054924,439,
FCDO,CSC,07/10/2021,Scholar Stipend,Award Costs,Scholar,PIN054924,3196.6,
FCDO,CSC,07/10/2021,Scholar Allowances,Award Costs,Scholar,PIN054924,439,
FCDO,CSC,07/10/2021,Scholar Stipend,Award Costs,Scholar,PIN054924,3196.6,
FCDO,CSC,07/10/2021,Scholar Allowances,Award Costs,Scholar,PIN054924,439,
FCDO,CSC,07/10/2021,Scholar Stipend,Award Costs,Scholar,PIN054924,3308.27,
FCDO,CSC,07/10/2021,Scholar Allowances,Award Costs,Scholar,PIN054924,439,
FCDO,CSC,07/10/2021,Scholar Stipend,Award Costs,Scholar,PIN054924,3382.71,
FCDO,CSC,07/10/2021,Scholar Allowances,Award Costs,Scholar,PIN054924,439,
FCDO,CSC,07/10/2021,Scholar Stipend,Award Costs,Scholar,PIN054924,4058.69,
FCDO,CSC,07/10/2021,Scholar Allowances,Award Costs,Scholar,PIN054924,439,
FCDO,CSC,07/10/2021,Scholar Stipend,Award Costs,Scholar,PIN054924,3345.49,
FCDO,CSC,07/10/2021,Scholar Allowances,Award Costs,Scholar,PIN054924,439,
FCDO,CSC,07/10/2021,Scholar Stipend,Award Costs,Scholar,PIN054924,3345.49,
FCDO,CSC,07/10/2021,Scholar Allowances,Award Costs,Scholar,PIN054924,439,
FCDO,CSC,07/10/2021,Scholar Stipend,Award Costs,Scholar,PIN054924,4170,
FCDO,CSC,07/10/2021,Scholar Allowances,Award Costs,Scholar,PIN054924,439,
FCDO,CSC,07/10/2021,Scholar Stipend,Award Costs,Scholar,PIN054924,4170,
FCDO,CSC,07/10/2021,Scholar Allowances,Award Costs,Scholar,PIN054924,439,
FCDO,CSC,07/10/2021,Scholar Stipend,Award Costs,Scholar,PIN054924,3159.37,
FCDO,CSC,07/10/2021,Scholar Allowances,Award Costs,Scholar,PIN054924,439,
FCDO,CSC,07/10/2021,Scholar Stipend,Award Costs,Scholar,PIN054924,4170,
FCDO,CSC,07/10/2021,Bank Charges,Programme Costs,MasterCard Prepaid Management Services Ltd,PIN054924,607.75,
FCDO,CSC,12/10/2021,Scholar Allowances,Award Costs,Scholar,PIN054925,439,
FCDO,CSC,12/10/2021,Scholar Stipend,Award Costs,Scholar,PIN054925,3159.37,
FCDO,CSC,12/10/2021,Scholar Allowances,Award Costs,Scholar,PIN054925,439,
FCDO,CSC,12/10/2021,Scholar Stipend,Award Costs,Scholar,PIN054925,3122.15,
FCDO,CSC,12/10/2021,Scholar Allowances,Award Costs,Scholar,PIN054925,439,
FCDO,CSC,12/10/2021,Scholar Stipend,Award Costs,Scholar,PIN054925,3122.15,
FCDO,CSC,12/10/2021,Scholar Allowances,Award Costs,Scholar,PIN054925,439,
FCDO,CSC,12/10/2021,Scholar Stipend,Award Costs,Scholar,PIN054925,3159.37,
FCDO,CSC,12/10/2021,Scholar Allowances,Award Costs,Scholar,PIN054925,439,
FCDO,CSC,12/10/2021,Scholar Stipend,Award Costs,Scholar,PIN054925,3233.82,
FCDO,CSC,12/10/2021,Scholar Allowances,Award Costs,Scholar,PIN054925,439,
FCDO,CSC,12/10/2021,Scholar Stipend,Award Costs,Scholar,PIN054925,3876.02,
FCDO,CSC,12/10/2021,Scholar Allowances,Award Costs,Scholar,PIN054925,439,
FCDO,CSC,12/10/2021,Scholar Stipend,Award Costs,Scholar,PIN054925,4013.02,
FCDO,CSC,12/10/2021,Scholar Allowances,Award Costs,Scholar,PIN054925,439,
FCDO,CSC,12/10/2021,Scholar Stipend,Award Costs,Scholar,PIN054925,3122.15,
FCDO,CSC,12/10/2021,Scholar Allowances,Award Costs,Scholar,PIN054925,439,
FCDO,CSC,12/10/2021,Scholar Stipend,Award Costs,Scholar,PIN054925,3196.6,
FCDO,CSC,12/10/2021,Scholar Allowances,Award Costs,Scholar,PIN054925,439,
FCDO,CSC,12/10/2021,Scholar Stipend,Award Costs,Scholar,PIN054925,3122.15,
FCDO,CSC,12/10/2021,Scholar Allowances,Award Costs,Scholar,PIN054925,439,
FCDO,CSC,12/10/2021,Scholar Stipend,Award Costs,Scholar,PIN054925,4259.95,
FCDO,CSC,12/10/2021,Scholar Allowances,Award Costs,Scholar,PIN054925,439,
FCDO,CSC,12/10/2021,Scholar Stipend,Award Costs,Scholar,PIN054925,4058.69,
FCDO,CSC,12/10/2021,Scholar Allowances,Award Costs,Scholar,PIN054925,439,
FCDO,CSC,12/10/2021,Scholar Stipend,Award Costs,Scholar,PIN054925,3271.04,
FCDO,CSC,12/10/2021,Bank Charges,Programme Costs,MasterCard Prepaid Management Services Ltd,PIN054925,504.23,
FCDO,CSC,05/10/2021,Scholar Allowances,Award Costs,Scholar,PIN054926,439,
FCDO,CSC,05/10/2021,Scholar Stipend,Award Costs,Scholar,PIN054926,3509,
FCDO,CSC,05/10/2021,Scholar Allowances,Award Costs,Scholar,PIN054926,439,
FCDO,CSC,05/10/2021,Scholar Stipend,Award Costs,Scholar,PIN054926,3399,
FCDO,CSC,05/10/2021,Scholar Allowances,Award Costs,Scholar,PIN054926,439,
FCDO,CSC,05/10/2021,Scholar Stipend,Award Costs,Scholar,PIN054926,3399,
FCDO,CSC,05/10/2021,Scholar Allowances,Award Costs,Scholar,PIN054926,439,
FCDO,CSC,05/10/2021,Scholar Stipend,Award Costs,Scholar,PIN054926,3472.33,
FCDO,CSC,05/10/2021,Scholar Allowances,Award Costs,Scholar,PIN054926,439,
FCDO,CSC,05/10/2021,Scholar Stipend,Award Costs,Scholar,PIN054926,4058.69,
FCDO,CSC,05/10/2021,Scholar Allowances,Award Costs,Scholar,PIN054926,439,
FCDO,CSC,05/10/2021,Scholar Stipend,Award Costs,Scholar,PIN054926,4058.69,
FCDO,CSC,05/10/2021,Scholar Allowances,Award Costs,Scholar,PIN054926,439,
FCDO,CSC,05/10/2021,Scholar Stipend,Award Costs,Scholar,PIN054926,3472.33,
FCDO,CSC,05/10/2021,Scholar Allowances,Award Costs,Scholar,PIN054926,439,
FCDO,CSC,05/10/2021,Scholar Stipend,Award Costs,Scholar,PIN054926,3399,
FCDO,CSC,05/10/2021,Scholar Allowances,Award Costs,Scholar,PIN054926,439,
FCDO,CSC,05/10/2021,Scholar Stipend,Award Costs,Scholar,PIN054926,3308.27,
FCDO,CSC,05/10/2021,Bank Charges,Programme Costs,MasterCard Prepaid Management Services Ltd,PIN054926,360.27,
FCDO,CSC,15/10/2021,Scholar Allowances,Award Costs,Scholar,PIN054927,600,
FCDO,CSC,15/10/2021,Scholar Allowances,Award Costs,Scholar,PIN054927,1928,
FCDO,CSC,15/10/2021,Scholar Stipend,Award Costs,Scholar,PIN054927,3382,
FCDO,CSC,15/10/2021,Scholar Allowances,Award Costs,Scholar,PIN054928,960,
FCDO,CSC,15/10/2021,Scholar Allowances,Award Costs,Scholar,PIN054928,1904,
FCDO,CSC,15/10/2021,Scholar Stipend,Award Costs,Scholar,PIN054928,4464,
FCDO,CSC,15/10/2021,Scholar Stipend,Award Costs,Scholar,PIN054929,1454.31,
FCDO,CSC,15/10/2021,Scholar Stipend,Award Costs,Scholar,PIN054930,732,
FCDO,CSC,15/10/2021,Scholar Stipend,Award Costs,Scholar,PIN054931,1904.58,
FCDO,CSC,22/10/2021,Scholar Stipend,Award Costs,Scholar,PIN054935,2824.35,
FCDO,CSC,22/10/2021,Visa Costs,Award Costs,Scholar,PIN054938,494.2,
FCDO,CSC,22/10/2021,Immigration Health Surcharge,Award Costs,Scholar,PIN054938,2350,
FCDO,CSC,22/10/2021,Scholar Travel,Award Costs,Scholar,PIN054939,541.11,
FCDO,CSC,22/10/2021,Scholar Allowances,Award Costs,Scholar,PIN054939,149,
FCDO,CSC,22/10/2021,Tuition Fee,Award Costs,The University of Edinburgh,PIN054942,18000,
FCDO,CSC,22/10/2021,Tuition Fee,Award Costs,University of Strathclyde,PIN054944,16520,
FCDO,CSC,22/10/2021,Scholar Travel,Award Costs,Diversity Travel,PIN054945,854.32,
FCDO,CSC,22/10/2021,Scholar Allowances,Award Costs,Diversity Travel,PIN054945,2330,
FCDO,CSC,22/10/2021,Scholar Allowances,Award Costs,Diversity Travel,PIN054945,2330,
FCDO,CSC,22/10/2021,Scholar Travel,Award Costs,Diversity Travel,PIN054945,660.64,
FCDO,CSC,22/10/2021,Scholar Travel,Award Costs,Diversity Travel,PIN054945,577.6,
FCDO,CSC,22/10/2021,Scholar Allowances,Award Costs,Diversity Travel,PIN054945,2330,
FCDO,CSC,22/10/2021,Scholar Allowances,Award Costs,Diversity Travel,PIN054945,2330,
FCDO,CSC,22/10/2021,Fieldwork Airfare,Award Costs,Diversity Travel,PIN054945,575.7,
FCDO,CSC,22/10/2021,Scholar Allowances,Award Costs,Diversity Travel,PIN054945,2330,
FCDO,CSC,22/10/2021,Scholar Travel,Award Costs,Diversity Travel,PIN054945,323.6,
FCDO,CSC,22/10/2021,Fieldwork Airfare,Award Costs,Diversity Travel,PIN054945,1562.92,
FCDO,CSC,22/10/2021,Scholar Travel,Award Costs,Diversity Travel,PIN054945,842.37,
FCDO,CSC,22/10/2021,Scholar Travel,Award Costs,Diversity Travel,PIN054945,704.22,
FCDO,CSC,22/10/2021,Scholar Travel,Award Costs,Diversity Travel,PIN054945,510.81,
FCDO,CSC,22/10/2021,Scholar Travel,Award Costs,Diversity Travel,PIN054945,506.58,
FCDO,CSC,22/10/2021,Scholar Travel,Award Costs,Diversity Travel,PIN054945,505.68,
FCDO,CSC,22/10/2021,Scholar Travel,Award Costs,Diversity Travel,PIN054945,494.03,
FCDO,CSC,22/10/2021,Scholar Travel,Award Costs,Diversity Travel,PIN054945,488.68,
FCDO,CSC,22/10/2021,Scholar Travel,Award Costs,Diversity Travel,PIN054945,476.86,
FCDO,CSC,22/10/2021,Scholar Travel,Award Costs,Diversity Travel,PIN054945,421.34,
FCDO,CSC,22/10/2021,Scholar Travel,Award Costs,Diversity Travel,PIN054945,413.25,
FCDO,CSC,22/10/2021,Scholar Travel,Award Costs,Diversity Travel,PIN054945,396.17,
FCDO,CSC,22/10/2021,Scholar Travel,Award Costs,Diversity Travel,PIN054945,193.2,
FCDO,CSC,22/10/2021,Scholar Travel,Award Costs,Diversity Travel,PIN054945,173.97,
FCDO,CSC,22/10/2021,Scholar Travel,Award Costs,Diversity Travel,PIN054945,152.97,
FCDO,CSC,22/10/2021,Scholar Travel,Award Costs,Diversity Travel,PIN054945,101.1,
FCDO,CSC,22/10/2021,Scholar Travel,Award Costs,Diversity Travel,PIN054945,77.4,
FCDO,CSC,22/10/2021,Scholar Travel,Award Costs,Diversity Travel,PIN054945,55.6,
FCDO,CSC,22/10/2021,Scholar Travel,Award Costs,Diversity Travel,PIN054945,55.2,
FCDO,CSC,22/10/2021,Scholar Travel,Award Costs,Diversity Travel,PIN054945,52.4,
FCDO,CSC,22/10/2021,Scholar Travel,Award Costs,Diversity Travel,PIN054945,51.28,
FCDO,CSC,22/10/2021,Fieldwork Airfare,Award Costs,Diversity Travel,PIN054945,48.9,
FCDO,CSC,22/10/2021,Scholar Travel,Award Costs,Diversity Travel,PIN054945,46.79,
FCDO,CSC,22/10/2021,Scholar Travel,Award Costs,Diversity Travel,PIN054945,47.58,
FCDO,CSC,22/10/2021,Scholar Travel,Award Costs,Diversity Travel,PIN054945,43.8,
FCDO,CSC,22/10/2021,Scholar Travel,Award Costs,Diversity Travel,PIN054945,32.1,
FCDO,CSC,22/10/2021,Scholar Travel,Award Costs,Diversity Travel,PIN054945,21.3,
FCDO,CSC,22/10/2021,Scholar Travel,Award Costs,Diversity Travel,PIN054945,20,
FCDO,CSC,22/10/2021,Scholar Travel,Award Costs,Diversity Travel,PIN054945,-10,
FCDO,CSC,22/10/2021,Scholar Travel,Award Costs,Diversity Travel,PIN054945,-32.25,
FCDO,CSC,22/10/2021,Scholar Travel,Award Costs,Diversity Travel,PIN054945,-320.07,
FCDO,CSC,22/10/2021,Scholar Travel,Award Costs,Diversity Travel,PIN054945,-1302.5,
FCDO,CSC,20/10/2021,Scholar Allowances,Award Costs,Scholar,PIN054947,1452,
FCDO,CSC,20/10/2021,Scholar Allowances,Award Costs,Scholar,PIN054947,732,
FCDO,CSC,20/10/2021,Scholar Stipend,Award Costs,Scholar,PIN054947,3399,
FCDO,CSC,20/10/2021,Scholar Stipend,Award Costs,Scholar,PIN054948,1133,
FCDO,CSC,21/10/2021,Scholar Stipend,Award Costs,Scholar,PIN054949,856.15,
FCDO,CSC,21/10/2021,Scholar Allowances,Award Costs,Scholar,PIN054950,3692.36,
FCDO,CSC,21/10/2021,Scholar Stipend,Award Costs,Scholar,PIN054951,3399,
FCDO,CSC,21/10/2021,Scholar Stipend,Award Costs,Scholar,PIN054952,3399,
FCDO,CSC,21/10/2021,Scholar Allowances,Award Costs,Scholar,PIN054954,2000,
FCDO,CSC,21/10/2021,Scholar Allowances,Award Costs,Scholar,PIN054955,2787.13,
FCDO,CSC,21/10/2021,Scholar Allowances,Award Costs,Scholar,PIN054956,439,
FCDO,CSC,21/10/2021,Scholar Stipend,Award Costs,Scholar,PIN054956,2638.24,
FCDO,CSC,26/10/2021,Scholar Allowances,Award Costs,Scholar,PIN054958,774.87,
FCDO,CSC,26/10/2021,Scholar Allowances,Award Costs,Scholar,PIN054958,774.87,
FCDO,CSC,26/10/2021,Scholar Stipend,Award Costs,Scholar,PIN054958,1898.87,
FCDO,CSC,29/10/2021,Tuition Fee,Award Costs,Oriel College Oxford,PIN054959,18000,
FCDO,CSC,29/10/2021,Visa Costs,Award Costs,Scholar,PIN054960,494,
FCDO,CSC,29/10/2021,Immigration Health Surcharge,Award Costs,Scholar,PIN054960,705,
FCDO,CSC,29/10/2021,Tuition Fee,Award Costs,The University of Salford,PIN054961,12024,
FCDO,CSC,29/10/2021,Tuition Fee,Award Costs,St.George's University of London,PIN054962,16000,
FCDO,CSC,29/10/2021,Tuition Fee,Award Costs,University of Southampton,PIN054963,13267,
FCDO,CSC,29/10/2021,Visa Costs,Award Costs,Scholar,PIN054964,494.2,
FCDO,CSC,29/10/2021,Immigration Health Surcharge,Award Costs,Scholar,PIN054964,235,
FCDO,CSC,29/10/2021,Scholar Travel,Award Costs,University of the West of England Bristol,PIN054965,831.9,
FCDO,CSC,29/10/2021,Tuition Fee,Award Costs,Royal Agricultural University,PIN054968,13150,
FCDO,CSC,29/10/2021,Tuition Fee,Award Costs,University of Newcastle upon Tyne,PIN054969,18000,
FCDO,CSC,29/10/2021,Tuition Fee,Award Costs,Royal Agricultural University,PIN054970,10520,
FCDO,CSC,29/10/2021,Tuition Fee,Award Costs,University of Newcastle upon Tyne,PIN054972,22500,
FCDO,CSC,29/10/2021,Tuition Fee,Award Costs,University of Newcastle upon Tyne,PIN054973,18000,
FCDO,CSC,29/10/2021,Scholar Travel,Award Costs,Scholar,PIN054974,45,
FCDO,CSC,29/10/2021,Scholar Allowances,Award Costs,Scholar,PIN054974,1750,
FCDO,CSC,29/10/2021,Tuition Fee,Award Costs,University of Newcastle upon Tyne,PIN054975,22500,
FCDO,CSC,29/10/2021,Tuition Fee,Award Costs,University of Newcastle upon Tyne,PIN054976,14400,
FCDO,CSC,29/10/2021,Tuition Fee,Award Costs,University of Newcastle upon Tyne,PIN054978,22500,
FCDO,CSC,29/10/2021,Tuition Fee,Award Costs,University of Newcastle upon Tyne,PIN054979,18600,
FCDO,CSC,29/10/2021,Tuition Fee,Award Costs,University of Newcastle upon Tyne,PIN054981,22500,
FCDO,CSC,29/10/2021,Tuition Fee,Award Costs,London School of Economics,PIN054982,16108.8,
FCDO,CSC,29/10/2021,Scholar Allowances,Award Costs,Lond Sch Hygiene & Tropical Me,PIN054983,300,
FCDO,CSC,29/10/2021,Scholar Travel,Award Costs,Lond Sch Hygiene & Tropical Me,PIN054983,546.09,
FCDO,CSC,29/10/2021,Tuition Fee,Award Costs,University of Newcastle upon Tyne,PIN054984,22500,
FCDO,CSC,29/10/2021,Tuition Fee,Award Costs,The University of Leeds,PIN054988,3000,
FCDO,CSC,29/10/2021,Tuition Fee,Award Costs,University of Portsmouth,PIN054990,12400,
FCDO,CSC,29/10/2021,Scholar Engagement,Programme Costs,AccessEd Charity,PIN054992,67080,
FCDO,CSC,29/10/2021,Scholar Travel,Award Costs,Diversity Travel,PIN054993,556.04,
FCDO,CSC,29/10/2021,Scholar Travel,Award Costs,Diversity Travel,PIN054993,2828.08,
FCDO,CSC,29/10/2021,Scholar Travel,Award Costs,Diversity Travel,PIN054993,2729.08,
FCDO,CSC,29/10/2021,Scholar Travel,Award Costs,Diversity Travel,PIN054993,21.3,
FCDO,CSC,29/10/2021,Scholar Travel,Award Costs,Diversity Travel,PIN054993,226.47,
FCDO,CSC,29/10/2021,Scholar Travel,Award Costs,Diversity Travel,PIN054993,604.24,
FCDO,CSC,29/10/2021,Scholar Travel,Award Costs,Diversity Travel,PIN054993,2810.68,
FCDO,CSC,29/10/2021,Scholar Travel,Award Costs,Diversity Travel,PIN054993,656.4,
FCDO,CSC,29/10/2021,Scholar Travel,Award Costs,Diversity Travel,PIN054993,990.48,
FCDO,CSC,29/10/2021,Scholar Travel,Award Costs,Diversity Travel,PIN054993,540.86,
FCDO,CSC,29/10/2021,Scholar Travel,Award Costs,Diversity Travel,PIN054993,610.94,
FCDO,CSC,29/10/2021,Scholar Travel,Award Costs,Diversity Travel,PIN054993,2659.82,
FCDO,CSC,29/10/2021,Scholar Travel,Award Costs,Diversity Travel,PIN054993,580.8,
FCDO,CSC,29/10/2021,Scholar Travel,Award Costs,Diversity Travel,PIN054993,504.96,
FCDO,CSC,29/10/2021,Scholar Travel,Award Costs,Diversity Travel,PIN054993,3047.88,
FCDO,CSC,29/10/2021,Scholar Travel,Award Costs,Diversity Travel,PIN054993,500.81,
FCDO,CSC,29/10/2021,Scholar Travel,Award Costs,Diversity Travel,PIN054993,45.64,
FCDO,CSC,29/10/2021,Scholar Travel,Award Costs,Diversity Travel,PIN054993,2630,
FCDO,CSC,29/10/2021,Scholar Travel,Award Costs,Diversity Travel,PIN054993,2926.2,
FCDO,CSC,29/10/2021,Scholar Travel,Award Costs,Diversity Travel,PIN054993,218,
FCDO,CSC,29/10/2021,Scholar Travel,Award Costs,Diversity Travel,PIN054993,2911.2,
FCDO,CSC,29/10/2021,Scholar Travel,Award Costs,Diversity Travel,PIN054993,42.3,
FCDO,CSC,29/10/2021,Scholar Travel,Award Costs,Diversity Travel,PIN054993,82.8,
FCDO,CSC,29/10/2021,Scholar Travel,Award Costs,Diversity Travel,PIN054993,903,
FCDO,CSC,29/10/2021,Scholar Travel,Award Costs,Diversity Travel,PIN054993,808,
FCDO,CSC,29/10/2021,Scholar Travel,Award Costs,Diversity Travel,PIN054993,99.9,
FCDO,CSC,29/10/2021,Scholar Travel,Award Costs,Diversity Travel,PIN054993,2291.24,
FCDO,CSC,29/10/2021,Scholar Travel,Award Costs,Diversity Travel,PIN054993,2829,
FCDO,CSC,29/10/2021,Scholar Travel,Award Costs,Diversity Travel,PIN054993,10,
FCDO,CSC,29/10/2021,Scholar Travel,Award Costs,Diversity Travel,PIN054993,584.8,
FCDO,CSC,29/10/2021,Scholar Travel,Award Costs,Diversity Travel,PIN054993,631.5,
FCDO,CSC,29/10/2021,Scholar Travel,Award Costs,Diversity Travel,PIN054993,154.3,
FCDO,CSC,29/10/2021,Scholar Travel,Award Costs,Diversity Travel,PIN054993,2853.08,
FCDO,CSC,29/10/2021,Scholar Travel,Award Costs,Diversity Travel,PIN054993,1787.56,
FCDO,CSC,29/10/2021,Fieldwork Airfare,Award Costs,Diversity Travel,PIN054993,805.73,
FCDO,CSC,29/10/2021,Scholar Travel,Award Costs,Diversity Travel,PIN054993,10,
FCDO,CSC,29/10/2021,Scholar Travel,Award Costs,Diversity Travel,PIN054993,2824.32,
FCDO,CSC,29/10/2021,Scholar Travel,Award Costs,Diversity Travel,PIN054993,-389.03,
FCDO,CSC,29/10/2021,Scholar Travel,Award Costs,Diversity Travel,PIN054993,2987.9,
FCDO,CSC,29/10/2021,Scholar Travel,Award Costs,Diversity Travel,PIN054993,2804.12,
FCDO,CSC,29/10/2021,Scholar Travel,Award Costs,Diversity Travel,PIN054993,2780.96,
FCDO,CSC,29/10/2021,Scholar Travel,Award Costs,Diversity Travel,PIN054993,-421.88,
FCDO,CSC,29/10/2021,Scholar Travel,Award Costs,Diversity Travel,PIN054993,-490.62,
FCDO,CSC,29/10/2021,Scholar Travel,Award Costs,Diversity Travel,PIN054993,3115.44,
FCDO,CSC,29/10/2021,Scholar Travel,Award Costs,Diversity Travel,PIN054993,3108.2,
FCDO,CSC,29/10/2021,Scholar Travel,Award Costs,Diversity Travel,PIN054993,2653.7,
FCDO,CSC,29/10/2021,Fieldwork Airfare,Award Costs,Diversity Travel,PIN054993,2835.6,
FCDO,CSC,29/10/2021,Scholar Travel,Award Costs,Diversity Travel,PIN054993,55,
FCDO,CSC,29/10/2021,Fieldwork Airfare,Award Costs,Diversity Travel,PIN054993,857.44,
FCDO,CSC,29/10/2021,Scholar Travel,Award Costs,Diversity Travel,PIN054993,59.35,
FCDO,CSC,29/10/2021,Scholar Travel,Award Costs,Diversity Travel,PIN054993,446.67,
FCDO,CSC,29/10/2021,Scholar Travel,Award Costs,Diversity Travel,PIN054993,2878.82,
FCDO,CSC,29/10/2021,Scholar Travel,Award Costs,Diversity Travel,PIN054993,582.45,
FCDO,CSC,29/10/2021,Scholar Travel,Award Costs,Diversity Travel,PIN054993,42,
FCDO,CSC,29/10/2021,Scholar Travel,Award Costs,Diversity Travel,PIN054993,2670.66,
FCDO,CSC,29/10/2021,Scholar Travel,Award Costs,Diversity Travel,PIN054993,49.2,
FCDO,CSC,29/10/2021,Scholar Travel,Award Costs,Diversity Travel,PIN054993,3108.9,
FCDO,CSC,29/10/2021,Scholar Travel,Award Costs,Diversity Travel,PIN054993,3429.86,
FCDO,CSC,29/10/2021,Scholar Travel,Award Costs,Diversity Travel,PIN054993,2330,
FCDO,CSC,29/10/2021,Scholar Travel,Award Costs,Diversity Travel,PIN054993,130.62,
FCDO,CSC,29/10/2021,Fieldwork Airfare,Award Costs,Diversity Travel,PIN054993,2330,
FCDO,CSC,29/10/2021,Scholar Travel,Award Costs,Diversity Travel,PIN054993,146.95,
FCDO,CSC,29/10/2021,Scholar Travel,Award Costs,Diversity Travel,PIN054993,894.92,
FCDO,CSC,29/10/2021,Scholar Travel,Award Costs,Diversity Travel,PIN054993,456.78,
FCDO,CSC,29/10/2021,Fieldwork Airfare,Award Costs,Diversity Travel,PIN054993,88,
FCDO,CSC,01/10/2021,Scholar Stipend,Award Costs,Scholar,PIN054994,1464,
FCDO,CSC,01/10/2021,Scholar Stipend,Award Costs,Scholar,PIN054994,1464,
FCDO,CSC,01/10/2021,Scholar Stipend,Award Costs,Scholar,PIN054994,1464,
FCDO,CSC,01/10/2021,Scholar Stipend,Award Costs,Scholar,PIN054994,3399,
FCDO,CSC,01/10/2021,Scholar Stipend,Award Costs,Scholar,PIN054994,1464,
FCDO,CSC,01/10/2021,Scholar Stipend,Award Costs,Scholar,PIN054994,1464,
FCDO,CSC,01/10/2021,Scholar Stipend,Award Costs,Scholar,PIN054994,3399,
FCDO,CSC,01/10/2021,Scholar Stipend,Award Costs,Scholar,PIN054994,1464,
FCDO,CSC,01/10/2021,Scholar Stipend,Award Costs,Scholar,PIN054994,1464,
FCDO,CSC,01/10/2021,Scholar Stipend,Award Costs,Scholar,PIN054994,3399,
FCDO,CSC,01/10/2021,Scholar Stipend,Award Costs,Scholar,PIN054994,1464,
FCDO,CSC,01/10/2021,Scholar Stipend,Award Costs,Scholar,PIN054994,3399,
FCDO,CSC,01/10/2021,Scholar Stipend,Award Costs,Scholar,PIN054994,1464,
FCDO,CSC,01/10/2021,Scholar Stipend,Award Costs,Scholar,PIN054994,3399,
FCDO,CSC,01/10/2021,Scholar Stipend,Award Costs,Scholar,PIN054994,4170,
FCDO,CSC,01/10/2021,Scholar Stipend,Award Costs,Scholar,PIN054994,3399,
FCDO,CSC,01/10/2021,Scholar Stipend,Award Costs,Scholar,PIN054994,3399,
FCDO,CSC,01/10/2021,Scholar Stipend,Award Costs,Scholar,PIN054994,1464,
FCDO,CSC,01/10/2021,Scholar Stipend,Award Costs,Scholar,PIN054994,1464,
FCDO,CSC,01/10/2021,Scholar Stipend,Award Costs,Scholar,PIN054994,4170,
FCDO,CSC,01/10/2021,Scholar Stipend,Award Costs,Scholar,PIN054994,3399,
FCDO,CSC,01/10/2021,Scholar Stipend,Award Costs,Scholar,PIN054994,3399,
FCDO,CSC,01/10/2021,Scholar Stipend,Award Costs,Scholar,PIN054994,1464,
FCDO,CSC,01/10/2021,Scholar Stipend,Award Costs,Scholar,PIN054994,3399,
FCDO,CSC,01/10/2021,Scholar Stipend,Award Costs,Scholar,PIN054994,3399,
FCDO,CSC,01/10/2021,Scholar Stipend,Award Costs,Scholar,PIN054994,3399,
FCDO,CSC,01/10/2021,Scholar Stipend,Award Costs,Scholar,PIN054994,3399,
FCDO,CSC,01/10/2021,Scholar Stipend,Award Costs,Scholar,PIN054994,1464,
FCDO,CSC,01/10/2021,Scholar Stipend,Award Costs,Scholar,PIN054994,3399,
FCDO,CSC,01/10/2021,Scholar Stipend,Award Costs,Scholar,PIN054994,1464,
FCDO,CSC,01/10/2021,Scholar Stipend,Award Costs,Scholar,PIN054994,1464,
FCDO,CSC,01/10/2021,Scholar Stipend,Award Costs,Scholar,PIN054994,3399,
FCDO,CSC,01/10/2021,Scholar Allowances,Award Costs,Scholar,PIN054994,439,
FCDO,CSC,01/10/2021,Scholar Allowances,Award Costs,Scholar,PIN054994,439,
FCDO,CSC,01/10/2021,Scholar Allowances,Award Costs,Scholar,PIN054994,439,
FCDO,CSC,01/10/2021,Scholar Allowances,Award Costs,Scholar,PIN054994,439,
FCDO,CSC,01/10/2021,Scholar Allowances,Award Costs,Scholar,PIN054994,439,
FCDO,CSC,01/10/2021,Scholar Allowances,Award Costs,Scholar,PIN054994,439,
FCDO,CSC,01/10/2021,Scholar Allowances,Award Costs,Scholar,PIN054994,439,
FCDO,CSC,01/10/2021,Scholar Stipend,Award Costs,Scholar,PIN054994,3271.04,
FCDO,CSC,01/10/2021,Scholar Stipend,Award Costs,Scholar,PIN054994,3509,
FCDO,CSC,01/10/2021,Scholar Stipend,Award Costs,Scholar,PIN054994,4039.37,
FCDO,CSC,01/10/2021,Scholar Stipend,Award Costs,Scholar,PIN054994,3765.65,
FCDO,CSC,01/10/2021,Scholar Stipend,Award Costs,Scholar,PIN054994,3308.27,
FCDO,CSC,01/10/2021,Scholar Stipend,Award Costs,Scholar,PIN054994,3399,
FCDO,CSC,01/10/2021,Scholar Stipend,Award Costs,Scholar,PIN054994,3399,
FCDO,CSC,01/10/2021,Bank Charges,Programme Costs,MasterCard Prepaid Management Services Ltd,PIN054994,1135.1,
FCDO,CSC,18/10/2021,Scholar Allowances,Award Costs,Scholar,PIN054995,439,
FCDO,CSC,18/10/2021,Scholar Allowances,Award Costs,Scholar,PIN054995,439,
FCDO,CSC,18/10/2021,Scholar Allowances,Award Costs,Scholar,PIN054995,439,
FCDO,CSC,18/10/2021,Scholar Allowances,Award Costs,Scholar,PIN054995,439,
FCDO,CSC,18/10/2021,Scholar Allowances,Award Costs,Scholar,PIN054995,439,
FCDO,CSC,18/10/2021,Scholar Allowances,Award Costs,Scholar,PIN054995,439,
FCDO,CSC,18/10/2021,Scholar Allowances,Award Costs,Scholar,PIN054995,439,
FCDO,CSC,18/10/2021,Scholar Allowances,Award Costs,Scholar,PIN054995,439,
FCDO,CSC,18/10/2021,Scholar Stipend,Award Costs,Scholar,PIN054995,2861.58,
FCDO,CSC,18/10/2021,Scholar Stipend,Award Costs,Scholar,PIN054995,3784.68,
FCDO,CSC,18/10/2021,Scholar Stipend,Award Costs,Scholar,PIN054995,3233.82,
FCDO,CSC,18/10/2021,Scholar Stipend,Award Costs,Scholar,PIN054995,3122.15,
FCDO,CSC,18/10/2021,Scholar Stipend,Award Costs,Scholar,PIN054995,3784.68,
FCDO,CSC,18/10/2021,Scholar Stipend,Award Costs,Scholar,PIN054995,2898.8,
FCDO,CSC,18/10/2021,Scholar Stipend,Award Costs,Scholar,PIN054995,2898.8,
FCDO,CSC,18/10/2021,Scholar Stipend,Award Costs,Scholar,PIN054995,3084.92,
FCDO,CSC,18/10/2021,Scholar Allowances,Award Costs,Scholar,PIN054995,439,
FCDO,CSC,18/10/2021,Scholar Allowances,Award Costs,Scholar,PIN054995,439,
FCDO,CSC,18/10/2021,Scholar Allowances,Award Costs,Scholar,PIN054995,439,
FCDO,CSC,18/10/2021,Scholar Allowances,Award Costs,Scholar,PIN054995,439,
FCDO,CSC,18/10/2021,Scholar Allowances,Award Costs,Scholar,PIN054995,439,
FCDO,CSC,18/10/2021,Scholar Stipend,Award Costs,Scholar,PIN054995,2787,
FCDO,CSC,18/10/2021,Scholar Stipend,Award Costs,Scholar,PIN054995,3196.6,
FCDO,CSC,18/10/2021,Scholar Stipend,Award Costs,Scholar,PIN054995,3122.15,
FCDO,CSC,18/10/2021,Scholar Stipend,Award Costs,Scholar,PIN054995,2936.03,
FCDO,CSC,18/10/2021,Scholar Stipend,Award Costs,Scholar,PIN054995,4349.91,
FCDO,CSC,18/10/2021,Scholar Allowances,Award Costs,Scholar,PIN054995,439,
FCDO,CSC,18/10/2021,Scholar Allowances,Award Costs,Scholar,PIN054995,439,
FCDO,CSC,18/10/2021,Scholar Allowances,Award Costs,Scholar,PIN054995,439,
FCDO,CSC,18/10/2021,Scholar Allowances,Award Costs,Scholar,PIN054995,439,
FCDO,CSC,18/10/2021,Scholar Stipend,Award Costs,Scholar,PIN054995,2973.25,
FCDO,CSC,18/10/2021,Scholar Stipend,Award Costs,Scholar,PIN054995,2936.03,
FCDO,CSC,18/10/2021,Scholar Stipend,Award Costs,Scholar,PIN054995,2861.58,
FCDO,CSC,18/10/2021,Scholar Stipend,Award Costs,Scholar,PIN054995,2936.03,
FCDO,CSC,18/10/2021,Bank Charges,Programme Costs,MasterCard Prepaid Management Services Ltd,PIN054995,612.33,
FCDO,CSC,19/10/2021,Scholar Allowances,Award Costs,Scholar,PIN054996,439,
FCDO,CSC,19/10/2021,Scholar Allowances,Award Costs,Scholar,PIN054996,439,
FCDO,CSC,19/10/2021,Scholar Allowances,Award Costs,Scholar,PIN054996,439,
FCDO,CSC,19/10/2021,Scholar Allowances,Award Costs,Scholar,PIN054996,439,
FCDO,CSC,19/10/2021,Scholar Allowances,Award Costs,Scholar,PIN054996,439,
FCDO,CSC,19/10/2021,Scholar Allowances,Award Costs,Scholar,PIN054996,439,
FCDO,CSC,19/10/2021,Scholar Allowances,Award Costs,Scholar,PIN054996,439,
FCDO,CSC,19/10/2021,Scholar Allowances,Award Costs,Scholar,PIN054996,439,
FCDO,CSC,19/10/2021,Scholar Stipend,Award Costs,Scholar,PIN054996,2861.58,
FCDO,CSC,19/10/2021,Scholar Stipend,Award Costs,Scholar,PIN054996,2936.03,
FCDO,CSC,19/10/2021,Scholar Stipend,Award Costs,Scholar,PIN054996,3556.34,
FCDO,CSC,19/10/2021,Scholar Stipend,Award Costs,Scholar,PIN054996,2861.58,
FCDO,CSC,19/10/2021,Scholar Stipend,Award Costs,Scholar,PIN054996,3047.7,
FCDO,CSC,19/10/2021,Scholar Stipend,Award Costs,Scholar,PIN054996,2936.03,
FCDO,CSC,19/10/2021,Scholar Stipend,Award Costs,Scholar,PIN054996,3233.82,
FCDO,CSC,19/10/2021,Scholar Stipend,Award Costs,Scholar,PIN054996,3556.34,
FCDO,CSC,19/10/2021,Bank Charges,Programme Costs,MasterCard Prepaid Management Services Ltd,PIN054996,285.02,
FCDO,CSC,20/10/2021,Scholar Allowances,Award Costs,Scholar,PIN054997,439,
FCDO,CSC,20/10/2021,Scholar Allowances,Award Costs,Scholar,PIN054997,439,
FCDO,CSC,20/10/2021,Scholar Allowances,Award Costs,Scholar,PIN054997,439,
FCDO,CSC,20/10/2021,Scholar Allowances,Award Costs,Scholar,PIN054997,439,
FCDO,CSC,20/10/2021,Scholar Allowances,Award Costs,Scholar,PIN054997,439,
FCDO,CSC,20/10/2021,Scholar Allowances,Award Costs,Scholar,PIN054997,439,
FCDO,CSC,20/10/2021,Scholar Allowances,Award Costs,Scholar,PIN054997,439,
FCDO,CSC,20/10/2021,Scholar Stipend,Award Costs,Scholar,PIN054997,2601.01,
FCDO,CSC,20/10/2021,Scholar Stipend,Award Costs,Scholar,PIN054997,3921.68,
FCDO,CSC,20/10/2021,Scholar Stipend,Award Costs,Scholar,PIN054997,2861.58,
FCDO,CSC,20/10/2021,Scholar Stipend,Award Costs,Scholar,PIN054997,3556.34,
FCDO,CSC,20/10/2021,Scholar Stipend,Award Costs,Scholar,PIN054997,2675.46,
FCDO,CSC,20/10/2021,Scholar Stipend,Award Costs,Scholar,PIN054997,2824.36,
FCDO,CSC,20/10/2021,Scholar Stipend,Award Costs,Scholar,PIN054997,2712.69,
FCDO,CSC,20/10/2021,Bank Charges,Programme Costs,MasterCard Prepaid Management Services Ltd,PIN054997,242.26,
FCDO,CSC,21/10/2021,Scholar Allowances,Award Costs,Scholar,PIN054998,439,
FCDO,CSC,21/10/2021,Scholar Allowances,Award Costs,Scholar,PIN054998,439,
FCDO,CSC,21/10/2021,Scholar Allowances,Award Costs,Scholar,PIN054998,439,
FCDO,CSC,21/10/2021,Scholar Allowances,Award Costs,Scholar,PIN054998,439,
FCDO,CSC,21/10/2021,Scholar Allowances,Award Costs,Scholar,PIN054998,439,
FCDO,CSC,21/10/2021,Scholar Stipend,Award Costs,Scholar,PIN054998,2601.01,
FCDO,CSC,21/10/2021,Scholar Stipend,Award Costs,Scholar,PIN054998,2787.13,
FCDO,CSC,21/10/2021,Scholar Stipend,Award Costs,Scholar,PIN054998,2861.58,
FCDO,CSC,21/10/2021,Scholar Stipend,Award Costs,Scholar,PIN054998,3435.67,
FCDO,CSC,21/10/2021,Scholar Stipend,Award Costs,Scholar,PIN054998,2526.57,
FCDO,CSC,21/10/2021,Bank Charges,Programme Costs,MasterCard Prepaid Management Services Ltd,PIN054998,164.08,
FCDO,CSC,25/10/2021,Scholar Allowances,Award Costs,Scholar,PIN055000,17.83,
FCDO,CSC,25/10/2021,Scholar Allowances,Award Costs,Scholar,PIN055000,139.7,
FCDO,CSC,25/10/2021,Scholar Allowances,Award Costs,Scholar,PIN055000,40,
FCDO,CSC,25/10/2021,Scholar Allowances,Award Costs,Scholar,PIN055000,42,
FCDO,CSC,25/10/2021,Scholar Allowances,Award Costs,Scholar,PIN055000,314.31,
FCDO,CSC,25/10/2021,Scholar Travel,Award Costs,Scholar,PIN055000,2362.67,
FCDO,CSC,25/10/2021,Scholar Allowances,Award Costs,Scholar,PIN055000,439,
FCDO,CSC,25/10/2021,Scholar Allowances,Award Costs,Scholar,PIN055000,439,
FCDO,CSC,25/10/2021,Scholar Allowances,Award Costs,Scholar,PIN055000,439,
FCDO,CSC,25/10/2021,Scholar Allowances,Award Costs,Scholar,PIN055000,439,
FCDO,CSC,25/10/2021,Scholar Allowances,Award Costs,Scholar,PIN055000,439,
FCDO,CSC,25/10/2021,Scholar Stipend,Award Costs,Scholar,PIN055000,2675.46,
FCDO,CSC,25/10/2021,Scholar Stipend,Award Costs,Scholar,PIN055000,3282.34,
FCDO,CSC,25/10/2021,Scholar Stipend,Award Costs,Scholar,PIN055000,2601.01,
FCDO,CSC,25/10/2021,Scholar Stipend,Award Costs,Scholar,PIN055000,2675.46,
FCDO,CSC,25/10/2021,Scholar Stipend,Award Costs,Scholar,PIN055000,2563.79,
FCDO,CSC,25/10/2021,Bank Charges,Programme Costs,MasterCard Prepaid Management Services Ltd,PIN055000,189.09,
FCDO,CSC,26/10/2021,Scholar Allowances,Award Costs,Scholar,PIN055001,433,
FCDO,CSC,26/10/2021,Scholar Allowances,Award Costs,Scholar,PIN055001,2000,
FCDO,CSC,26/10/2021,Bank Charges,Programme Costs,MasterCard Prepaid Management Services Ltd,PIN055001,24.33,
FCDO,CSC,27/10/2021,Scholar Allowances,Award Costs,Scholar,PIN055002,439,
FCDO,CSC,27/10/2021,Scholar Allowances,Award Costs,Scholar,PIN055002,439,
FCDO,CSC,27/10/2021,Scholar Allowances,Award Costs,Scholar,PIN055002,439,
FCDO,CSC,27/10/2021,Scholar Stipend,Award Costs,Scholar,PIN055002,3578.23,
FCDO,CSC,27/10/2021,Scholar Stipend,Award Costs,Scholar,PIN055002,2563.79,
FCDO,CSC,27/10/2021,Scholar Stipend,Award Costs,Scholar,PIN055002,2780,
FCDO,CSC,27/10/2021,Bank Charges,Programme Costs,MasterCard Prepaid Management Services Ltd,PIN055002,102.39,
FCDO,CSC,28/10/2021,Scholar Allowances,Award Costs,Scholar,PIN055003,439,
FCDO,CSC,28/10/2021,Scholar Allowances,Award Costs,Scholar,PIN055003,439,
FCDO,CSC,28/10/2021,Scholar Stipend,Award Costs,Scholar,PIN055003,2414.9,
FCDO,CSC,28/10/2021,Scholar Stipend,Award Costs,Scholar,PIN055003,2824.36,
FCDO,CSC,28/10/2021,Bank Charges,Programme Costs,MasterCard Prepaid Management Services Ltd,PIN055003,61.17,
FCDO,CSC,29/10/2021,Advances Repayments,Award Costs,Scholar,PIN055004,-1966.8,
FCDO,CSC,29/10/2021,Scholar Advances,Award Costs,Scholar,PIN055004,6556,
FCDO,CSC,29/10/2021,Scholar Allowances,Award Costs,Scholar,PIN055004,439,
FCDO,CSC,29/10/2021,Scholar Allowances,Award Costs,Scholar,PIN055004,439,
FCDO,CSC,29/10/2021,Scholar Stipend,Award Costs,Scholar,PIN055004,2414.9,
FCDO,CSC,29/10/2021,Scholar Stipend,Award Costs,Scholar,PIN055004,2377.67,
FCDO,CSC,29/10/2021,Bank Charges,Programme Costs,MasterCard Prepaid Management Services Ltd,PIN055004,102.8,
FCDO,CSC,29/10/2021,Scholar Stipend,Award Costs,Scholar,PIN055007,1699.5,
FCDO,CSC,29/10/2021,Scholar Allowances,Award Costs,Scholar,PIN055008,1259.28,
FCDO,CSC,29/10/2021,Scholar Allowances,Award Costs,Scholar,PIN055008,1259.28,
FCDO,CSC,29/10/2021,Scholar Stipend,Award Costs,Scholar,PIN055009,771,
FCDO,CSC,29/10/2021,Scholar Stipend,Award Costs,Scholar,PIN055010,4170,
FCDO,CSC,29/10/2021,Scholar Allowances,Award Costs,Scholar,PIN055012,2090,
FCDO,CSC,01/10/2021,Commission Meetings,Admin Costs,Commission Chair,PPI055207,3000,
FCDO,CSC,01/10/2021,Scholar Stipend,Award Costs,Scholar,PRF000232,-722,
FCDO,CSC,05/10/2021,Commission Meetings,Admin Costs,NatWest CC,NOM001094,1295.04,
